[Event "*** Titled Tuesday Blitz"]
[Site "Chess.com"]
[Date "2018.04.03"]
[Round "8"]
[White "GMKrikor"]
[Black "Man-Chuk"]
[Result "1/2-1/2"]
[WhiteElo "2653"]
[BlackElo "2673"]
[TimeControl "180+2"]
[EndTime "14:48:08 PDT"]
[Termination "Game drawn by repetition"]

1. e4 {[%clk 0:03:01.9]} 1... e5 {[%clk 0:03:00.1]} 2. Nf3 {[%clk 0:03:02.6]}
2... Nc6 {[%clk 0:03:01.2]} 3. Bb5 {[%clk 0:03:01.8]} 3... a6 {[%clk 0:03:00.5]}
4. Ba4 {[%clk 0:03:03.2]} 4... Nf6 {[%clk 0:03:01.1]} 5. O-O {[%clk 0:03:04.5]}
5... Nxe4 {[%clk 0:03:02.2]} 6. d4 {[%clk 0:03:03.6]} 6... b5 {[%clk 0:03:03]}
7. Bb3 {[%clk 0:03:05.2]} 7... d5 {[%clk 0:03:04.2]} 8. dxe5 {[%clk 0:03:04.3]}
8... Be6 {[%clk 0:03:05.1]} 9. Nbd2 {[%clk 0:03:04.1]} 9... Be7 {[%clk
0:03:00.6]} 10. c3 {[%clk 0:02:59.6]} 10... Nc5 {[%clk 0:02:53.1]} 11. Bc2
{[%clk 0:03:00.5]} 11... Bg4 {[%clk 0:02:54]} 12. h3 {[%clk 0:02:55.4]} 12...
Bh5 {[%clk 0:02:54.6]} 13. Re1 {[%clk 0:02:56.8]} 13... Qd7 {[%clk 0:02:40.2]}
14. Nf1 {[%clk 0:02:38.8]} 14... Bg6 {[%clk 0:02:36.3]} 15. Ne3 {[%clk
0:02:20.3]} 15... Rd8 {[%clk 0:02:29.6]} 16. Nd4 {[%clk 0:02:00]} 16... Nxd4
{[%clk 0:02:02.8]} 17. cxd4 {[%clk 0:01:57.7]} 17... Bxc2 {[%clk 0:01:45.3]} 18.
Qxc2 {[%clk 0:01:59.6]} 18... Ne6 {[%clk 0:01:45.9]} 19. Nf5 {[%clk 0:01:59.6]}
19... O-O {[%clk 0:01:38.7]} 20. Be3 {[%clk 0:01:59]} 20... c5 {[%clk
0:01:19.8]} 21. Rad1 {[%clk 0:00:55.1]} 21... cxd4 {[%clk 0:01:07.1]} 22. Bxd4
{[%clk 0:00:50.2]} 22... Rc8 {[%clk 0:01:01.4]} 23. Qd3 {[%clk 0:00:31.3]} 23...
g6 {[%clk 0:00:57.2]} 24. Nxe7+ {[%clk 0:00:28.7]} 24... Qxe7 {[%clk 0:00:59.1]}
25. Be3 {[%clk 0:00:29.6]} 25... Rfd8 {[%clk 0:00:54.4]} 26. Rc1 {[%clk
0:00:28.4]} 26... d4 {[%clk 0:00:48.5]} 27. Rxc8 {[%clk 0:00:25.9]} 27... Rxc8
{[%clk 0:00:49.3]} 28. Bd2 {[%clk 0:00:27.8]} 28... Qd7 {[%clk 0:00:37.6]} 29.
Qf3 {[%clk 0:00:22.2]} 29... Qe7 {[%clk 0:00:20.1]} 30. Qe4 {[%clk 0:00:15.2]}
30... Rd8 {[%clk 0:00:19.9]} 31. Ba5 {[%clk 0:00:13.5]} 31... Rd7 {[%clk
0:00:18.4]} 32. Rd1 {[%clk 0:00:11.1]} 32... Kg7 {[%clk 0:00:19.4]} 33. a3
{[%clk 0:00:08.5]} 33... Qg5 {[%clk 0:00:19.1]} 34. Bd2 {[%clk 0:00:08.3]} 34...
Qh5 {[%clk 0:00:20.1]} 35. Re1 {[%clk 0:00:05.9]} 35... Qf5 {[%clk 0:00:19.8]}
36. Qxf5 {[%clk 0:00:06.9]} 36... gxf5 {[%clk 0:00:21.7]} 37. Rc1 {[%clk
0:00:07.2]} 37... d3 {[%clk 0:00:23.1]} 38. f4 {[%clk 0:00:07.9]} 38... Nd4
{[%clk 0:00:23.5]} 39. Kf2 {[%clk 0:00:08.5]} 39... Nb3 {[%clk 0:00:24.8]} 40.
Rd1 {[%clk 0:00:10]} 40... a5 {[%clk 0:00:17.2]} 41. Kf3 {[%clk 0:00:09.2]}
41... a4 {[%clk 0:00:15.3]} 42. Bc3 {[%clk 0:00:08.4]} 42... Kg6 {[%clk
0:00:15.3]} 43. Ke3 {[%clk 0:00:07.8]} 43... d2 {[%clk 0:00:16.6]} 44. g4 {[%clk
0:00:08]} 44... h5 {[%clk 0:00:16.8]} 45. g5 {[%clk 0:00:05.5]} 45... Rd5 {[%clk
0:00:12.2]} 46. Ke2 {[%clk 0:00:05.3]} 46... Kh7 {[%clk 0:00:11.7]} 47. Bxd2
{[%clk 0:00:06]} 47... Nd4+ {[%clk 0:00:08.1]} 48. Kf2 {[%clk 0:00:05.3]} 48...
Ne6 {[%clk 0:00:09.4]} 49. Ke1 {[%clk 0:00:05.1]} 49... Rd4 {[%clk 0:00:10.8]}
50. Be3 {[%clk 0:00:03.7]} 50... Re4 {[%clk 0:00:12.3]} 51. Kf2 {[%clk
0:00:04.6]} 51... Nxf4 {[%clk 0:00:13.8]} 52. Rd7 {[%clk 0:00:06.2]} 52... Kg6
{[%clk 0:00:14.3]} 53. Kf3 {[%clk 0:00:07.7]} 53... Ne6 {[%clk 0:00:14.7]} 54.
Rb7 {[%clk 0:00:07.9]} 54... Rxe5 {[%clk 0:00:15.5]} 55. h4 {[%clk 0:00:07.8]}
55... Rd5 {[%clk 0:00:16.1]} 56. Rb8 {[%clk 0:00:08.4]} 56... f4 {[%clk
0:00:16.5]} 57. Bf2 {[%clk 0:00:06.4]} 57... Kf5 {[%clk 0:00:16.9]} 58. Rb7
{[%clk 0:00:06.8]} 58... Rd3+ {[%clk 0:00:16.5]} 59. Ke2 {[%clk 0:00:07.3]}
59... Rb3 {[%clk 0:00:18]} 60. Rxf7+ {[%clk 0:00:08.1]} 60... Ke5 {[%clk
0:00:16.2]} 61. g6 {[%clk 0:00:09]} 61... Rxb2+ {[%clk 0:00:15.3]} 62. Kf3
{[%clk 0:00:10.6]} 62... Rb3+ {[%clk 0:00:15.7]} 63. Kg2 {[%clk 0:00:12.2]}
63... f3+ {[%clk 0:00:13]} 64. Kg3 {[%clk 0:00:11]} 64... Rxa3 {[%clk
0:00:09.6]} 65. g7 {[%clk 0:00:09.4]} 65... Nxg7 {[%clk 0:00:10.4]} 66. Rxg7
{[%clk 0:00:11.3]} 66... b4 {[%clk 0:00:10.4]} 67. Bc5 {[%clk 0:00:09.6]} 67...
Rb3 {[%clk 0:00:09.5]} 68. Rb7 {[%clk 0:00:10.2]} 68... a3 {[%clk 0:00:09.4]}
69. Rxb4 {[%clk 0:00:11.2]} 69... Rxb4 {[%clk 0:00:03.1]} 70. Bxb4 {[%clk
0:00:12.6]} 70... a2 {[%clk 0:00:05]} 71. Bc3+ {[%clk 0:00:13.1]} 71... Ke4
{[%clk 0:00:06.6]} 72. Kf2 {[%clk 0:00:13.6]} 72... Kf4 {[%clk 0:00:07.9]} 73.
Ba1 {[%clk 0:00:11.8]} 73... Kg4 {[%clk 0:00:06]} 74. Bf6 {[%clk 0:00:12.9]}
74... Kf4 {[%clk 0:00:06.8]} 75. Ba1 {[%clk 0:00:10.9]} 75... Kg4 {[%clk
0:00:08.1]} 76. Bf6 {[%clk 0:00:11.9]} 76... Kf4 {[%clk 0:00:09.3]} 77. Ba1
{[%clk 0:00:05.8]} 1/2-1/2

[Event "*** Titled Tuesday Blitz"]
[Site "Chess.com"]
[Date "2018.04.03"]
[Round "9"]
[White "toad"]
[Black "AndrewDGreen"]
[Result "1-0"]
[WhiteElo "2244"]
[BlackElo "2118"]
[TimeControl "180+2"]
[EndTime "14:55:09 PDT"]
[Termination "toad won by resignation"]

1. d4 {[%clk 0:03:01.9]} 1... Nf6 {[%clk 0:03:00.5]} 2. c4 {[%clk 0:03:03.3]}
2... c5 {[%clk 0:02:59.3]} 3. d5 {[%clk 0:03:03.9]} 3... e5 {[%clk 0:03:00.8]}
4. Nc3 {[%clk 0:03:02.2]} 4... d6 {[%clk 0:03:01.9]} 5. e4 {[%clk 0:03:02.5]}
5... Nbd7 {[%clk 0:03:03.2]} 6. g3 {[%clk 0:03:02.9]} 6... Be7 {[%clk
0:03:02.6]} 7. h4 {[%clk 0:02:58.5]} 7... h5 {[%clk 0:02:59.5]} 8. Bh3 {[%clk
0:02:57.2]} 8... g6 {[%clk 0:02:54]} 9. Nf3 {[%clk 0:02:53]} 9... Bf8 {[%clk
0:02:54.7]} 10. Ng5 {[%clk 0:02:47.2]} 10... Bh6 {[%clk 0:02:54.1]} 11. Be3
{[%clk 0:02:45.3]} 11... Ng4 {[%clk 0:02:43.3]} 12. Bxg4 {[%clk 0:02:37.9]}
12... hxg4 {[%clk 0:02:45.2]} 13. Qxg4 {[%clk 0:02:38.5]} 13... Nb6 {[%clk
0:02:43.7]} 14. Qf3 {[%clk 0:02:12.8]} 14... f6 {[%clk 0:02:40.8]} 15. Ne6
{[%clk 0:02:05.6]} 15... Bxe6 {[%clk 0:02:38.5]} 16. Bxh6 {[%clk 0:02:02.8]}
16... Rxh6 {[%clk 0:02:37.5]} 17. dxe6 {[%clk 0:02:03.8]} 17... Nxc4 {[%clk
0:02:30]} 18. Nd5 {[%clk 0:02:00]} 18... Qa5+ {[%clk 0:02:30.3]} 19. b4 {[%clk
0:01:53]} 19... cxb4 {[%clk 0:02:20.6]} 20. O-O {[%clk 0:01:50.6]} 20... g5
{[%clk 0:02:04.8]} 21. hxg5 {[%clk 0:01:45.3]} 21... Nd2 {[%clk 0:02:01.8]} 22.
Qf5 {[%clk 0:01:27.3]} 1-0

[Event "*** Titled Tuesday Blitz"]
[Site "Chess.com"]
[Date "2018.04.03"]
[Round "9"]
[White "SanQui14"]
[Black "GMSrinath"]
[Result "1-0"]
[WhiteElo "2243"]
[BlackElo "2684"]
[TimeControl "180+2"]
[EndTime "14:55:26 PDT"]
[Termination "SanQui14 won by resignation"]

1. e4 {[%clk 0:03:01.9]} 1... c5 {[%clk 0:02:37.6]} 2. Nf3 {[%clk 0:02:57.6]}
2... d6 {[%clk 0:02:38.5]} 3. d4 {[%clk 0:02:58.7]} 3... cxd4 {[%clk 0:02:40.4]}
4. Qxd4 {[%clk 0:03:00.5]} 4... a6 {[%clk 0:02:41.1]} 5. h3 {[%clk 0:03:00.6]}
5... Nc6 {[%clk 0:02:42.4]} 6. Qe3 {[%clk 0:03:02.2]} 6... g6 {[%clk 0:02:43.9]}
7. c4 {[%clk 0:03:03.5]} 7... Bg7 {[%clk 0:02:45.2]} 8. Nc3 {[%clk 0:03:04.4]}
8... Nf6 {[%clk 0:02:46.7]} 9. Be2 {[%clk 0:03:05.7]} 9... O-O {[%clk
0:02:48.2]} 10. O-O {[%clk 0:03:06.9]} 10... Nd7 {[%clk 0:02:49.4]} 11. Rd1
{[%clk 0:03:06.5]} 11... Nc5 {[%clk 0:02:45.5]} 12. Rb1 {[%clk 0:03:07.3]} 12...
Bxc3 {[%clk 0:02:45.1]} 13. Qxc3 {[%clk 0:03:04.6]} 13... Nxe4 {[%clk
0:02:46.4]} 14. Qe3 {[%clk 0:03:05.6]} 14... Nf6 {[%clk 0:02:46.7]} 15. b4
{[%clk 0:03:05.8]} 15... Qc7 {[%clk 0:02:48.2]} 16. b5 {[%clk 0:03:06.6]} 16...
axb5 {[%clk 0:02:48.7]} 17. cxb5 {[%clk 0:03:08.4]} 17... Ne5 {[%clk 0:02:50]}
18. Nxe5 {[%clk 0:03:08]} 18... dxe5 {[%clk 0:02:51.9]} 19. Bb2 {[%clk
0:03:08.9]} 19... Bf5 {[%clk 0:02:50.6]} 20. Bxe5 {[%clk 0:03:08.2]} 20... Qc2
{[%clk 0:02:48.6]} 21. Rb2 {[%clk 0:03:07.4]} 21... Qa4 {[%clk 0:02:48.2]} 22.
Rd4 {[%clk 0:03:02.4]} 22... Qa5 {[%clk 0:02:45.4]} 23. Bf3 {[%clk 0:03:00]}
23... Rad8 {[%clk 0:02:39.4]} 24. Bxb7 {[%clk 0:02:53.8]} 24... Rxd4 {[%clk
0:02:39.6]} 25. Bxd4 {[%clk 0:02:54.2]} 25... Rd8 {[%clk 0:02:38]} 26. Bf3
{[%clk 0:02:50.7]} 26... Qa4 {[%clk 0:02:38.7]} 27. Bc5 {[%clk 0:02:34.5]} 27...
Ne4 {[%clk 0:02:31.4]} 28. Bxe4 {[%clk 0:02:33.4]} 28... Bxe4 {[%clk 0:02:33.3]}
29. Rb4 {[%clk 0:02:25.3]} 29... Qd1+ {[%clk 0:02:32.8]} 30. Kh2 {[%clk
0:02:26.6]} 30... Bb7 {[%clk 0:02:31.5]} 31. Rd4 {[%clk 0:02:24.5]} 31... Rxd4
{[%clk 0:02:31]} 32. Bxd4 {[%clk 0:02:26.4]} 32... f6 {[%clk 0:02:12.4]} 33.
Qxe7 {[%clk 0:02:22.1]} 33... Qxd4 {[%clk 0:02:12.7]} 34. Qxb7 {[%clk
0:02:23.2]} 34... Qf4+ {[%clk 0:02:14.6]} 35. g3 {[%clk 0:02:24.6]} 35... Qxf2+
{[%clk 0:02:12.6]} 36. Qg2 {[%clk 0:02:25.5]} 36... Qd4 {[%clk 0:02:11.7]} 37.
Qc2 {[%clk 0:02:21.3]} 37... Qb4 {[%clk 0:02:01.6]} 38. Qb3+ {[%clk 0:02:20.1]}
1-0

[Event "*** Titled Tuesday Blitz"]
[Site "Chess.com"]
[Date "2018.04.03"]
[Round "9"]
[White "ristingho"]
[Black "guillembaches"]
[Result "1-0"]
[WhiteElo "2290"]
[BlackElo "2210"]
[TimeControl "180+2"]
[EndTime "14:55:32 PDT"]
[Termination "ristingho won by resignation"]

1. d4 {[%clk 0:02:59.3]} 1... Nf6 {[%clk 0:03:00.5]} 2. c4 {[%clk 0:02:57.5]}
2... e6 {[%clk 0:03:01.6]} 3. Nc3 {[%clk 0:02:57.3]} 3... Bb4 {[%clk 0:03:02.5]}
4. Qc2 {[%clk 0:02:57.9]} 4... O-O {[%clk 0:03:02]} 5. Nf3 {[%clk 0:02:56.1]}
5... b6 {[%clk 0:03:01.8]} 6. e4 {[%clk 0:02:53.6]} 6... d5 {[%clk 0:02:31.9]}
7. cxd5 {[%clk 0:02:52.9]} 7... exd5 {[%clk 0:02:31.3]} 8. e5 {[%clk 0:02:54.8]}
8... Ne4 {[%clk 0:02:24.9]} 9. Bd3 {[%clk 0:02:55.2]} 9... f5 {[%clk 0:02:16.8]}
10. exf6 {[%clk 0:02:51.6]} 10... Nxf6 {[%clk 0:02:11.4]} 11. O-O {[%clk
0:02:51.9]} 11... Be6 {[%clk 0:01:48.6]} 12. Ng5 {[%clk 0:02:42.2]} 12... Qd6
{[%clk 0:01:45.6]} 13. Bxh7+ {[%clk 0:02:22]} 13... Kh8 {[%clk 0:01:45.5]} 14.
Bd3 {[%clk 0:02:13.3]} 14... Nc6 {[%clk 0:01:44.6]} 15. Nb5 {[%clk 0:02:04]}
15... Qd7 {[%clk 0:01:43]} 16. Nxe6 {[%clk 0:02:04.8]} 16... Qxe6 {[%clk
0:01:43.8]} 17. Bf5 {[%clk 0:02:06.7]} 17... Qe8 {[%clk 0:01:12.2]} 18. Nxc7
{[%clk 0:02:05.8]} 18... Qh5 {[%clk 0:01:12.9]} 19. Qxc6 {[%clk 0:01:58.6]}
19... Rac8 {[%clk 0:00:58.9]} 20. Bxc8 {[%clk 0:01:58]} 1-0

[Event "*** Titled Tuesday Blitz"]
[Site "Chess.com"]
[Date "2018.04.03"]
[Round "9"]
[White "schoolmeester"]
[Black "DrHolmes13"]
[Result "1-0"]
[WhiteElo "2728"]
[BlackElo "2486"]
[TimeControl "180+2"]
[EndTime "14:56:07 PDT"]
[Termination "schoolmeester won by resignation"]

1. e4 {[%clk 0:03:01.9]} 1... c6 {[%clk 0:03:00.2]} 2. f3 {[%clk 0:03:01.8]}
2... d5 {[%clk 0:03:02.1]} 3. d4 {[%clk 0:03:02.7]} 3... e6 {[%clk 0:03:02.1]}
4. Be3 {[%clk 0:03:02.3]} 4... Nf6 {[%clk 0:03:00.6]} 5. e5 {[%clk 0:02:59.7]}
5... Nfd7 {[%clk 0:02:59.8]} 6. c3 {[%clk 0:03:00.6]} 6... c5 {[%clk 0:02:58]}
7. f4 {[%clk 0:03:01.5]} 7... Nc6 {[%clk 0:02:56.2]} 8. Nf3 {[%clk 0:03:02.2]}
8... Qb6 {[%clk 0:02:46.5]} 9. Qd2 {[%clk 0:03:02.4]} 9... Be7 {[%clk
0:02:46.3]} 10. a3 {[%clk 0:02:55.4]} 10... Na5 {[%clk 0:02:41.9]} 11. Qc2
{[%clk 0:02:53]} 11... Qb3 {[%clk 0:02:34.7]} 12. Qc1 {[%clk 0:02:52.1]} 12...
Nc4 {[%clk 0:02:31.2]} 13. Bxc4 {[%clk 0:02:44.8]} 13... Qxc4 {[%clk 0:02:30.7]}
14. Qd1 {[%clk 0:02:36.3]} 14... O-O {[%clk 0:02:23.2]} 15. b3 {[%clk
0:02:35.5]} 15... Qb5 {[%clk 0:02:22.8]} 16. a4 {[%clk 0:02:34.9]} 16... Qa6
{[%clk 0:02:17.8]} 17. Na3 {[%clk 0:02:34]} 17... Qc6 {[%clk 0:02:04.8]} 18. O-O
{[%clk 0:02:32.3]} 18... b6 {[%clk 0:02:06.1]} 19. Nc2 {[%clk 0:02:12.6]} 19...
Ba6 {[%clk 0:02:06.3]} 20. Rf2 {[%clk 0:02:11.1]} 20... Rac8 {[%clk 0:02:03.5]}
21. g4 {[%clk 0:02:02.6]} 21... cxd4 {[%clk 0:01:56.5]} 22. Bxd4 {[%clk
0:01:54.7]} 22... Nc5 {[%clk 0:01:56.4]} 23. b4 {[%clk 0:01:54.8]} 23... Nxa4
{[%clk 0:01:44.8]} 24. Ne3 {[%clk 0:01:49.2]} 24... Nxc3 {[%clk 0:01:40.1]} 25.
Qb3 {[%clk 0:01:45]} 25... Ne2+ {[%clk 0:01:36.7]} 26. Kh1 {[%clk 0:01:34.8]}
26... Bc4 {[%clk 0:01:36]} 1-0

[Event "*** Titled Tuesday Blitz"]
[Site "Chess.com"]
[Date "2018.04.03"]
[Round "9"]
[White "TST2014"]
[Black "nickmatta"]
[Result "1-0"]
[WhiteElo "2361"]
[BlackElo "2298"]
[TimeControl "180+2"]
[EndTime "14:57:38 PDT"]
[Termination "TST2014 won by checkmate"]

1. d4 {[%clk 0:03:01.9]} 1... Nf6 {[%clk 0:03:00.1]} 2. c4 {[%clk 0:03:01.4]}
2... g6 {[%clk 0:03:01.2]} 3. Nf3 {[%clk 0:03:02.3]} 3... Bg7 {[%clk 0:03:01.8]}
4. Nc3 {[%clk 0:03:03.6]} 4... d5 {[%clk 0:03:02.6]} 5. Bg5 {[%clk 0:03:03.9]}
5... Ne4 {[%clk 0:03:03.4]} 6. Bf4 {[%clk 0:03:03.7]} 6... Nxc3 {[%clk
0:02:53.3]} 7. bxc3 {[%clk 0:03:03.9]} 7... dxc4 {[%clk 0:02:54.8]} 8. e3 {[%clk
0:03:04]} 8... b5 {[%clk 0:02:55.4]} 9. a4 {[%clk 0:03:01.8]} 9... c6 {[%clk
0:02:56.3]} 10. Qb1 {[%clk 0:02:58.6]} 10... a6 {[%clk 0:02:45.7]} 11. axb5
{[%clk 0:02:55.7]} 11... cxb5 {[%clk 0:02:44.9]} 12. Qe4 {[%clk 0:02:55.7]}
12... Nc6 {[%clk 0:02:00.5]} 13. Qxc6+ {[%clk 0:02:55.2]} 13... Bd7 {[%clk
0:02:02.2]} 14. Qb7 {[%clk 0:02:42.7]} 14... a5 {[%clk 0:01:58.4]} 15. Bc7
{[%clk 0:02:37.7]} 15... Qc8 {[%clk 0:01:59.4]} 16. Qxc8+ {[%clk 0:02:38.2]}
16... Rxc8 {[%clk 0:01:58.2]} 17. Bxa5 {[%clk 0:02:38.1]} 17... O-O {[%clk
0:01:59.4]} 18. Bb4 {[%clk 0:02:36.7]} 18... Rfe8 {[%clk 0:01:57.5]} 19. Be2
{[%clk 0:02:34.7]} 19... Bc6 {[%clk 0:01:47.8]} 20. O-O {[%clk 0:02:33.6]} 20...
f6 {[%clk 0:01:45.9]} 21. Ra7 {[%clk 0:02:30.8]} 21... e5 {[%clk 0:01:40.4]} 22.
dxe5 {[%clk 0:02:21.4]} 22... fxe5 {[%clk 0:01:39.6]} 23. Ng5 {[%clk 0:02:10.8]}
23... e4 {[%clk 0:01:27.6]} 24. Bg4 {[%clk 0:02:09.8]} 24... Ra8 {[%clk
0:01:25.2]} 25. Be6+ {[%clk 0:02:09.3]} 25... Kh8 {[%clk 0:01:20.9]} 26. Nf7+
{[%clk 0:02:04.6]} 26... Kg8 {[%clk 0:01:22]} 27. Rxa8 {[%clk 0:01:56]} 27...
Bxa8 {[%clk 0:01:17.7]} 28. Ng5+ {[%clk 0:01:51.9]} 28... Kh8 {[%clk 0:01:17.8]}
29. Bd7 {[%clk 0:01:52.8]} 29... Rb8 {[%clk 0:01:10.5]} 30. Ra1 {[%clk
0:01:41.6]} 30... Bf6 {[%clk 0:01:06]} 31. Ne6 {[%clk 0:01:36.7]} 31... Bd5
{[%clk 0:01:02.9]} 32. Nc7 {[%clk 0:01:35.4]} 32... Bf7 {[%clk 0:00:46.3]} 33.
Nxb5 {[%clk 0:01:28.4]} 33... Rb7 {[%clk 0:00:47.5]} 34. Bc6 {[%clk 0:01:26.7]}
34... Rb6 {[%clk 0:00:47.8]} 35. Ra8+ {[%clk 0:01:28]} 35... Kg7 {[%clk
0:00:48.3]} 36. Bf8+ {[%clk 0:01:29.1]} 36... Kg8 {[%clk 0:00:43.9]} 37. Bh6+
{[%clk 0:01:25.2]} 37... Be8 {[%clk 0:00:42.5]} 38. Rxe8+ {[%clk 0:01:22.5]}
38... Kf7 {[%clk 0:00:42.5]} 39. Nd6# {[%clk 0:01:22.4]} 1-0

[Event "*** Titled Tuesday Blitz"]
[Site "Chess.com"]
[Date "2018.04.03"]
[Round "9"]
[White "AndrewMcStone"]
[Black "2Tilted"]
[Result "0-1"]
[WhiteElo "2076"]
[BlackElo "2261"]
[TimeControl "180+2"]
[EndTime "14:57:39 PDT"]
[Termination "2Tilted won by resignation"]

1. d4 {[%clk 0:03:01.8]} 1... Nf6 {[%clk 0:02:59.7]} 2. c4 {[%clk 0:03:02.5]}
2... c5 {[%clk 0:03:00.7]} 3. d5 {[%clk 0:03:02.3]} 3... b5 {[%clk 0:03:01.7]}
4. cxb5 {[%clk 0:03:01.6]} 4... a6 {[%clk 0:03:02.9]} 5. f3 {[%clk 0:03:01.3]}
5... Qa5+ {[%clk 0:02:56.8]} 6. Bd2 {[%clk 0:02:47.1]} 6... Qxb5 {[%clk
0:02:56.2]} 7. e4 {[%clk 0:02:44]} 7... Qxb2 {[%clk 0:02:56.8]} 8. Bc3 {[%clk
0:02:45.1]} 8... Qb7 {[%clk 0:02:57.3]} 9. Nd2 {[%clk 0:02:29.5]} 9... d6 {[%clk
0:02:57.8]} 10. Rb1 {[%clk 0:02:24]} 10... Qa7 {[%clk 0:02:41.5]} 11. Nc4 {[%clk
0:02:17.8]} 11... Nbd7 {[%clk 0:02:42]} 12. Bd3 {[%clk 0:01:55.8]} 12... Rb8
{[%clk 0:02:36.9]} 13. Ne2 {[%clk 0:01:54.8]} 13... g6 {[%clk 0:02:33.3]} 14.
O-O {[%clk 0:01:52.7]} 14... Bg7 {[%clk 0:02:34.3]} 15. Qa4 {[%clk 0:01:47]}
15... Rxb1 {[%clk 0:02:21.4]} 16. Rxb1 {[%clk 0:01:46.2]} 16... O-O {[%clk
0:02:22.9]} 17. Kh1 {[%clk 0:01:32.1]} 17... Ne8 {[%clk 0:02:10.7]} 18. Qc6
{[%clk 0:01:18.8]} 18... Nc7 {[%clk 0:01:57]} 19. Bxg7 {[%clk 0:00:56.3]} 19...
Kxg7 {[%clk 0:01:58.1]} 20. Nb6 {[%clk 0:00:39.7]} 20... Nxb6 {[%clk 0:01:49.7]}
21. Qxb6 {[%clk 0:00:40.2]} 21... Qxb6 {[%clk 0:01:32.6]} 22. Rxb6 {[%clk
0:00:42]} 22... f5 {[%clk 0:01:29.4]} 23. Kg1 {[%clk 0:00:21.5]} 23... fxe4
{[%clk 0:01:28.9]} 24. fxe4 {[%clk 0:00:22.2]} 24... Bg4 {[%clk 0:01:06]} 25. a4
{[%clk 0:00:17.2]} 25... Bxe2 {[%clk 0:01:05]} 26. Bxe2 {[%clk 0:00:18.9]} 26...
Kf6 {[%clk 0:01:03.9]} 27. Bh5 {[%clk 0:00:15.7]} 27... gxh5 {[%clk 0:01:02.6]}
0-1

[Event "*** Titled Tuesday Blitz"]
[Site "Chess.com"]
[Date "2018.04.03"]
[Round "9"]
[White "TrimitziosP7"]
[Black "PchelkinVK"]
[Result "0-1"]
[WhiteElo "2591"]
[BlackElo "2409"]
[TimeControl "180+2"]
[EndTime "14:57:43 PDT"]
[Termination "PchelkinVK won by resignation"]

1. Nf3 {[%clk 0:03:01.9]} 1... Nc6 {[%clk 0:02:54.9]} 2. c4 {[%clk 0:03:03.8]}
2... e5 {[%clk 0:02:56]} 3. Nc3 {[%clk 0:03:05.1]} 3... Nf6 {[%clk 0:02:57.5]}
4. d4 {[%clk 0:03:06.1]} 4... exd4 {[%clk 0:02:58.1]} 5. Nxd4 {[%clk 0:03:08]}
5... d5 {[%clk 0:02:58.6]} 6. cxd5 {[%clk 0:03:07]} 6... Nxd5 {[%clk 0:02:58.9]}
7. Nxc6 {[%clk 0:03:08.3]} 7... bxc6 {[%clk 0:02:59.7]} 8. e4 {[%clk 0:03:09.8]}
8... Nxc3 {[%clk 0:02:56.9]} 9. Qxd8+ {[%clk 0:03:11.7]} 9... Kxd8 {[%clk
0:02:58.2]} 10. bxc3 {[%clk 0:03:13.6]} 10... Bd6 {[%clk 0:02:45.5]} 11. Bc4
{[%clk 0:03:13.3]} 11... Ke7 {[%clk 0:02:44.7]} 12. O-O {[%clk 0:03:12.8]} 12...
Be6 {[%clk 0:02:45.4]} 13. Be2 {[%clk 0:03:12.1]} 13... Rab8 {[%clk 0:02:40.7]}
14. Be3 {[%clk 0:03:12.8]} 14... Rb2 {[%clk 0:02:34.8]} 15. Bd3 {[%clk
0:03:12.7]} 15... a5 {[%clk 0:02:30]} 16. a4 {[%clk 0:03:12.6]} 16... Rhb8
{[%clk 0:02:08.4]} 17. f4 {[%clk 0:03:11.9]} 17... f6 {[%clk 0:02:09]} 18. Bd4
{[%clk 0:03:10.7]} 18... c5 {[%clk 0:02:06.7]} 19. Be3 {[%clk 0:03:11.7]} 19...
c4 {[%clk 0:02:07.6]} 20. e5 {[%clk 0:03:12.2]} 20... cxd3 {[%clk 0:02:00.8]}
21. exd6+ {[%clk 0:03:14.1]} 21... cxd6 {[%clk 0:02:02.4]} 22. f5 {[%clk
0:03:13.8]} 22... Bd5 {[%clk 0:02:01.3]} 23. Rf2 {[%clk 0:03:09.6]} 23... Be4
{[%clk 0:01:26.2]} 24. Re1 {[%clk 0:03:01.8]} 24... d5 {[%clk 0:01:19.8]} 25.
Bd2 {[%clk 0:02:57.5]} 25... Rc2 {[%clk 0:01:16.4]} 26. g4 {[%clk 0:02:51.7]}
26... Rbb2 {[%clk 0:01:15.7]} 27. Rd1 {[%clk 0:02:51.5]} 27... Kd6 {[%clk
0:01:05.2]} 28. Kf1 {[%clk 0:02:49.1]} 28... Kc5 {[%clk 0:01:05.3]} 29. Ke1
{[%clk 0:02:50]} 29... Kc4 {[%clk 0:01:06.2]} 30. h4 {[%clk 0:02:50]} 30... Kb3
{[%clk 0:01:03]} 31. Ra1 {[%clk 0:02:46.1]} 31... Ra2 {[%clk 0:01:04]} 32. Rb1+
{[%clk 0:02:46.1]} 32... Rcb2 {[%clk 0:01:05]} 33. Rd1 {[%clk 0:02:44.9]} 33...
Kxa4 {[%clk 0:01:05.8]} 34. g5 {[%clk 0:02:46.4]} 34... Kb3 {[%clk 0:01:05.2]}
35. h5 {[%clk 0:02:36.4]} 35... h6 {[%clk 0:01:00]} 36. g6 {[%clk 0:02:31.5]}
36... a4 {[%clk 0:00:51.6]} 37. Rc1 {[%clk 0:02:31.9]} 37... a3 {[%clk
0:00:46.4]} 38. c4 {[%clk 0:02:27.4]} 38... Rxd2 {[%clk 0:00:38.9]} 39. Rxd2
{[%clk 0:02:29.3]} 39... Rxd2 {[%clk 0:00:40.1]} 40. Kxd2 {[%clk 0:02:31.1]}
40... dxc4 {[%clk 0:00:41.2]} 41. Rc3+ {[%clk 0:02:32.3]} 41... Kb4 {[%clk
0:00:41.7]} 42. Rc1 {[%clk 0:02:33.1]} 42... a2 {[%clk 0:00:41.4]} 43. Ke3
{[%clk 0:02:24.9]} 43... c3 {[%clk 0:00:30.2]} 44. Kxe4 {[%clk 0:02:25.4]} 44...
d2 {[%clk 0:00:31.2]} 45. Ra1 {[%clk 0:02:21.6]} 45... Kb3 {[%clk 0:00:30.9]}
46. Kd3 {[%clk 0:02:22]} 46... Kb2 {[%clk 0:00:31.6]} 47. Rd1 {[%clk 0:02:21.3]}
47... a1=Q {[%clk 0:00:29.2]} 48. Rxa1 {[%clk 0:02:22.4]} 48... Kxa1 {[%clk
0:00:30.4]} 49. Kc2 {[%clk 0:02:24.3]} 49... Ka2 {[%clk 0:00:31.5]} 50. Kxc3
{[%clk 0:02:25.8]} 50... d1=Q {[%clk 0:00:32.3]} 0-1